fUSD/lending_fUSD_20241009
["ID","MTS","AMOUNT","RATE_DAILY","PERIOD"]
[340078196,1728474641263,-500.0,0.00038356,30]
[340078197,1728474641271,-500.0,0.00038356,30]
[340078198,1728474641280,-557.49,0.00038356,30]
[340078199,1728474641289,-500.0,0.00038356,30]
[340078200,1728474641298,-500.0,0.00038356,30]
[340078201,1728474641307,-500.0,0.00038356,30]
[340078202,1728474641316,-500.0,0.00038356,30]
[340078203,1728474641325,-500.0,0.00038356,30]
[340078204,1728474641336,-503.33857912,0.00038356,30]
[340078205,1728474641346,-500.0,0.00038356,30]
[340078206,1728474641355,-1516.28,0.00038356,30]
[340078207,1728474641364,-1601.85,0.00038356,30]
[340078208,1728474641374,-500.0,0.00038356,30]
[340078209,1728474641383,-436.73139775,0.00038356,30]
[340078210,1728474641392,-6541.43,0.00038356,30]
[340078211,1728474641402,-500.0,0.00038356,30]
[340078212,1728474641411,-500.0,0.00038356,30]
[340078213,1728474641420,-500.0,0.00038356,30]
[340078214,1728474641430,-511.66,0.00038356,30]
[340078215,1728474641439,-500.0,0.00038356,30]
[340078216,1728474641448,-500.0,0.00038356,30]
[340078217,1728474641457,-500.0,0.00038356,30]
[340078218,1728474641466,-3144.68,0.00038356,30]
[340078219,1728474641476,-500.0,0.00038356,30]
[340078220,1728474641485,-249.834524,0.00038356,30]
[340078221,1728474641494,-433.67390747,0.00038356,30]
[340078222,1728474641504,-500.0,0.00038356,30]
[340078223,1728474641513,-500.0,0.00038356,30]
[340078224,1728474641522,-516.07,0.00038356,30]
[340078225,1728474641531,-483.27573019,0.00038356,30]
[340078226,1728474641540,-500.0,0.00038356,30]
[340078227,1728474641550,-1660.54,0.00038356,30]
[340078228,1728474641559,-500.0,0.00038356,30]
[340078229,1728474641568,-500.0,0.00038356,30]
[340078230,1728474641578,-500.0,0.00038356,30]
[340078231,1728474641587,-500.0,0.00038356,30]
[340078232,1728474641597,-500.0,0.00038356,30]
[340078233,1728474641606,-500.0,0.00038356,30]
[340078234,1728474641615,-511.35,0.00038356,30]
[340078235,1728474641624,-500.0,0.00038356,30]
[340078236,1728474641634,-1623.1,0.00038356,30]
[340078237,1728474641644,-500.0,0.00038356,30]
[340078238,1728474641653,-1133.39,0.00038356,30]
[340078239,1728474641662,-500.0,0.00038356,30]
[340078240,1728474641672,-500.0,0.00038356,30]
[340078241,1728474641681,-500.0,0.00038356,30]
[340078242,1728474641691,-500.0,0.00038356,30]
[340078243,1728474641701,-186.46851721,0.00038356,30]
[340078244,1728474641710,-520.14,0.00038356,30]
[340078245,1728474641719,-500.0,0.00038356,30]
[340078246,1728474641728,-500.0,0.00038356,30]
[340078247,1728474641737,-752.04,0.00038356,30]
[340078248,1728474641747,-500.0,0.00038356,30]
[340078249,1728474641848,-355.90571226,0.00038356,30]
[340078250,1728474641871,-500.0,0.00038356,30]
[340078251,1728474641880,-500.0,0.00038356,30]
[340078252,1728474641889,-500.0,0.00038356,30]
[340078253,1728474641899,-500.0,0.00038356,30]
[340078254,1728474641908,-500.0,0.00038356,30]
[340078255,1728474641917,-500.0,0.00038356,30]
[340078256,1728474641927,-520.47699416,0.00038356,30]
[340078257,1728474641936,-500.0,0.00038356,30]
[340078258,1728474641947,-500.0,0.00038356,30]
[340078259,1728474641957,-500.0,0.00038356,30]
[340078260,1728474641967,-500.0,0.00038356,30]
[340078261,1728474641978,-500.0,0.00038356,30]
[340078262,1728474641987,-1187.39,0.00038356,30]
[340078263,1728474641997,-6906.1,0.00038356,30]
[340078264,1728474642006,-965.23,0.00038356,30]
[340078265,1728474642016,-500.0,0.00038356,30]
[340078266,1728474642025,-500.0,0.00038356,30]
[340078267,1728474642034,-850.98,0.00038356,30]
[340078268,1728474642045,-510.22681102,0.00038356,30]
[340078269,1728474642054,-740.41,0.00038356,30]
[340078270,1728474642064,-500.0,0.00038356,30]
[340078271,1728474642075,-929.93,0.00038356,30]
[340078272,1728474642084,-500.0,0.00038356,30]
[340078273,1728474642093,-500.0,0.00038356,30]
[340078274,1728474642103,-500.0,0.00038356,30]
[340078275,1728474642113,-500.0,0.00038356,30]
[340078276,1728474642122,-500.0,0.00038356,30]
[340078277,1728474642132,-500.0,0.00038356,30]
[340078278,1728474642141,-2338.34,0.00038356,30]
[340078279,1728474642150,-456.05347,0.00038356,30]
[340078280,1728474642160,-500.0,0.00038356,30]
[340078281,1728474642170,-500.0,0.00038356,30]
[340078282,1728474642179,-1204.18,0.00038356,30]
[340078283,1728474642189,-500.0,0.00038356,30]
[340078284,1728474642198,-5566.38,0.00038356,30]
[340078285,1728474642208,-500.0,0.00038356,30]
[340078286,1728474642217,-500.0,0.00038356,30]
[340078287,1728474642227,-500.0,0.00038356,30]
[340078288,1728474642238,-500.0,0.00038356,30]
[340078289,1728474642248,-500.0,0.00038356,30]
[340078290,1728474642259,-500.0,0.00038356,30]
[340078291,1728474642268,-500.0,0.00038356,30]
[340078292,1728474642280,-500.0,0.00038356,30]
[340078293,1728474642290,-500.0,0.00038356,30]
[340078294,1728474642300,-500.0,0.00038356,30]
[340078295,1728474642309,-500.0,0.00038356,30]
[340078296,1728474642318,-500.0,0.00038356,30]
[340078297,1728474642328,-888.83,0.00038356,30]
[340078298,1728474642337,-500.0,0.00038356,30]
[340078299,1728474642346,-500.0,0.00038356,30]
[340078300,1728474642355,-610.42247048,0.00038356,30]
[340078301,1728474642366,-500.0,0.00038356,30]
[340078302,1728474642377,-500.0,0.00038356,30]
[340078303,1728474642387,-952.39,0.00038356,30]
[340078304,1728474642397,-500.0,0.00038356,30]
[340078305,1728474642410,-806.49,0.00038356,30]
[340078306,1728474642419,-500.0,0.00038356,30]
[340078307,1728474642429,-637.2,0.00038356,30]
[340078308,1728474642438,-500.0,0.00038356,30]
[340078309,1728474642447,-500.0,0.00038356,30]
[340078310,1728474642458,-500.0,0.00038356,30]
[340078311,1728474642467,-500.0,0.00038356,30]
[340078312,1728474642478,-500.0,0.00038356,30]
[340078313,1728474642487,-500.0,0.00038356,30]
[340078314,1728474642497,-500.0,0.00038356,30]
[340078315,1728474642507,-500.0,0.00038356,30]
[340078316,1728474642517,-167.26254013,0.00038356,30]
[340078317,1728474642527,-1108.84,0.00038356,30]
[340078318,1728474642536,-500.0,0.00038356,30]
[340078319,1728474642546,-500.0,0.00038356,30]
[340078320,1728474642555,-500.0,0.00038356,30]
[340078321,1728474642564,-500.0,0.00038356,30]
[340078322,1728474642573,-656.99,0.00038356,30]
[340078323,1728474642582,-500.0,0.00038356,30]
[340078324,1728474642591,-500.0,0.00038356,30]
[340078325,1728474642600,-500.0,0.00038356,30]
[340078326,1728474642610,-500.0,0.00038356,30]
[340078327,1728474642619,-500.0,0.00038356,30]
[340078328,1728474642628,-499.69916851,0.00038356,30]
[340078329,1728474642639,-500.0,0.00038356,30]
[340078330,1728474642648,-294.06733068,0.00038356,30]
[340078331,1728474642658,-500.0,0.00038356,30]
[340078332,1728474642667,-500.0,0.00038356,30]
[340078333,1728474642676,-1838.69,0.00038356,30]
[340078334,1728474642686,-500.0,0.00038356,30]
[340078335,1728474642695,-919.89,0.00038356,30]
[340078336,1728474642704,-589.03,0.00038356,30]
[340078337,1728474642713,-544.03,0.00038356,30]
[340078338,1728474642722,-1319.95,0.00038356,14]
[340078339,1728474642732,-500.0,0.00038356,30]
[340078340,1728474642741,-500.0,0.00038356,30]
[340078341,1728474642751,-500.0,0.00038356,30]
[340078342,1728474642761,-225.98520418,0.00038356,30]
[340078343,1728474642770,-500.0,0.00038356,30]
[340078344,1728474642780,-1370.58,0.00038356,30]
[340078345,1728474642789,-500.0,0.00038356,30]
[340078346,1728474642798,-500.0,0.00038356,30]
[340078347,1728474642808,-500.0,0.00038356,30]
[340078348,1728474642818,-500.0,0.00038356,30]
[340078349,1728474642828,-500.0,0.00038356,30]
[340078350,1728474642837,-500.0,0.00038356,30]
[340078351,1728474642847,-500.0,0.00038356,30]
[340078352,1728474642856,-500.0,0.00038356,30]
[340078353,1728474642866,-500.0,0.00038356,30]
[340078354,1728474642875,-570.96,0.00038356,30]
[340078355,1728474642884,-592.72130059,0.00038356,30]
[340078356,1728474642894,-500.0,0.00038356,30]
[340078357,1728474642903,-500.0,0.00038356,30]
[340078358,1728474642913,-500.0,0.00038356,30]
[340078359,1728474642924,-1052.26,0.00038356,30]
[340078360,1728474642933,-27071.03,0.00038356,30]
[340078361,1728474642943,-500.0,0.00038356,30]
[340078362,1728474642953,-500.0,0.00038356,21]
[340078363,1728474642962,-500.0,0.00038356,30]
[340078364,1728474642972,-500.0,0.00038356,30]
[340078365,1728474642981,-2425.88,0.00038356,30]
[340078366,1728474642991,-2218.3,0.00038356,30]
[340078367,1728474643000,-956.91,0.00038356,30]
[340078368,1728474643011,-500.0,0.00038356,30]
[340078369,1728474643021,-1000.0,0.00038493,120]
[340078370,1728474643031,-60529.0,0.000385,2]
[340078371,1728474643042,-1664.63309604,0.00038632,15]
[340078372,1728474643051,-2200.0,0.000389,14]
[340078373,1728474643061,-500.0,0.00038903,30]
[340078374,1728474643071,-500.0,0.00038903,30]
[340078375,1728474643081,-500.0,0.00038903,30]
[340078376,1728474643090,-151.57079487,0.00038903,30]
[340078377,1728474643100,-500.0,0.00038903,30]
[340078378,1728474643109,-500.0,0.00038903,30]
[340078379,1728474643118,-500.0,0.00038903,30]
[340078380,1728474643127,-500.0,0.00038903,30]
[340078381,1728474643137,-506.13476272,0.00038904,30]
[340078382,1728474643146,-500.0,0.00038904,30]
[340078383,1728474643156,-500.0,0.00038904,5]
[340078384,1728474643165,-589.42814031,0.00038904,2]
[340078385,1728474643175,-500.0,0.00038904,30]
[340078386,1728474643184,-674.19,0.00038904,5]
[340078387,1728474643193,-500.0,0.00038904,30]
[340078388,1728474643202,-308.75318285,0.00038904,30]
[340078389,1728474643211,-500.0,0.00038904,30]
[340078390,1728474643221,-500.0,0.00038904,2]
[340078391,1728474643230,-2048.58,0.00038904,30]
[340078392,1728474643239,-500.0,0.00038904,30]
[340078393,1728474643249,-500.0,0.00038904,30]
[340078394,1728474643258,-500.0,0.00038904,30]
[340078395,1728474643271,-500.0,0.00038904,30]
[340078396,1728474643280,-500.0,0.00038904,30]
[340078397,1728474643290,-433.10639668,0.00038904,30]
[340078398,1728474643299,-500.0,0.00038904,30]
[340078399,1728474643310,-500.0,0.00038904,30]
[340078400,1728474643319,-500.0,0.00038904,30]
[340078402,1728474643329,-500.0,0.00038904,30]
[340078403,1728474643339,-500.0,0.00038904,30]
[340078404,1728474643348,-1194.79,0.00038904,30]
[340078405,1728474643357,-500.0,0.00038904,30]
[340078406,1728474643366,-500.0,0.00038904,30]
[340078407,1728474643375,-500.0,0.00038904,30]
[340078408,1728474643384,-1534.88,0.00038904,30]
[340078409,1728474643393,-500.0,0.00038904,30]
[340078410,1728474643402,-500.0,0.00038904,30]
[340078411,1728474643412,-500.0,0.00038904,30]
[340078412,1728474643421,-500.0,0.00038904,30]
[340078413,1728474643431,-500.0,0.00038904,30]
[340078414,1728474643440,-500.0,0.00038904,30]
[340078415,1728474643449,-500.0,0.00038904,30]
[340078416,1728474643458,-1943.47,0.00038904,30]
[340078417,1728474643467,-1063.79,0.00038904,30]
[340078418,1728474643476,-500.0,0.00038904,30]
[340078419,1728474643486,-700.0,0.00038904,30]
[340078420,1728474643495,-500.0,0.00038904,30]
[340078421,1728474643505,-392.95544499,0.00038904,30]
[340078422,1728474643514,-500.0,0.00038904,30]
[340078423,1728474643523,-448.92504974,0.00038904,30]
[340078424,1728474643533,-500.0,0.00038904,30]
[340078425,1728474643542,-500.0,0.00038904,30]
[340078426,1728474643551,-500.0,0.00038904,30]
[340078427,1728474643560,-500.0,0.00038904,30]
[340078428,1728474643569,-500.0,0.00038904,30]
[340078429,1728474643579,-1251.76,0.00038904,30]
[340078430,1728474643588,-500.0,0.00038904,30]
[340078431,1728474643598,-500.0,0.00038904,30]
[340078432,1728474643607,-682.14,0.00038904,30]
[340078433,1728474643617,-1200.4,0.00038904,30]
[340078434,1728474643626,-500.0,0.00038904,30]
[340078435,1728474643636,-500.0,0.00038904,30]
[340078436,1728474643645,-500.0,0.00038904,30]
[340078437,1728474643655,-500.0,0.00038904,30]
[340078438,1728474643664,-500.0,0.00038904,30]
[340078439,1728474643674,-500.0,0.00038904,30]
[340078440,1728474643683,-1240.35,0.00038904,30]
[340078441,1728474643692,-1151.03,0.00038904,30]
[340078442,1728474643701,-500.0,0.00038904,30]
[340078443,1728474643712,-20000.0,0.00038904,2]
[340078444,1728474643721,-500.0,0.00038904,30]
[340078445,1728474643730,-500.0,0.00038904,30]
[340078446,1728474643740,-500.0,0.00038904,30]
[340078447,1728474643748,-500.0,0.00038904,30]
[340078448,1728474643758,-500.0,0.00038904,30]
[340078449,1728474643767,-500.0,0.00038904,30]
[340078450,1728474643777,-500.0,0.00038904,30]
[340078451,1728474643786,-500.0,0.00038904,30]
[340078452,1728474643796,-500.0,0.00038904,30]
[340078453,1728474643806,-500.0,0.00038904,30]
[340078454,1728474643815,-578.02,0.00038904,30]
[340078455,1728474643825,-500.0,0.00038904,30]
[340078456,1728474643834,-701.09,0.00038904,30]
[340078457,1728474643844,-500.0,0.00038904,30]
[340078458,1728474643854,-500.0,0.00038904,30]
[340078459,1728474643863,-500.0,0.00038904,30]
[340078460,1728474643872,-500.0,0.00038904,30]
[340078461,1728474643882,-500.0,0.00038904,30]
[340078462,1728474643891,-500.0,0.00038904,30]
[340078463,1728474643901,-500.0,0.00038904,30]
[340078464,1728474643910,-509.34248918,0.00038904,30]
[340078465,1728474643919,-348.3897557,0.00038904,30]
[340078466,1728474644231,-151.6102443,0.00038904,30]
[340078467,1728474644241,-197.14022908,0.00038904,30]
[340078468,1728474644252,-302.85977092,0.00038904,30]
[340078469,1728474644265,-204.04287401,0.00038904,30]
[340078470,1728474644277,-295.95712599,0.00038904,30]
[340078471,1728474644286,-259.43331418,0.00038904,30]
[340078472,1728474644295,-500.0,0.00038904,30]
[340078473,1728474644305,-500.0,0.00038904,30]
[340078474,1728474644314,-500.0,0.00038904,30]
[340078475,1728474644324,-500.0,0.00038904,30]
[340078476,1728474644342,-1129.05,0.00038904,7]
[340078477,1728474644353,-500.0,0.00038904,30]
[340078478,1728474644362,-35.18574653,0.00038904,30]
[340078479,1728474644373,-582.82615229,0.00038904,30]
[340078480,1728474644382,-72.87029701,0.00038904,30]
[340078481,1728474644394,-427.12970299,0.00038904,30]
[340078482,1728474644404,-290.83235755,0.00038904,30]
[340078483,1728474644415,-253.36764245,0.00038904,30]
[340078484,1728474644424,-500.0,0.00038904,30]
[340078485,1728474644434,-1757.35235755,0.00038904,30]
[340078486,1728474644445,-568.77764245,0.00038904,30]
[340078487,1728474644454,-1235.1,0.00038904,30]
[340078488,1728474644463,-500.0,0.00038904,30]
[340078489,1728474644472,-500.0,0.00038904,30]
[340078490,1728474644481,-500.0,0.00038904,30]
[340078491,1728474644490,-500.0,0.00038904,30]
[340078492,1728474644500,-500.0,0.00038904,30]
[340078493,1728474644510,-776.22,0.00038904,30]
[340078494,1728474644519,-500.0,0.00038904,30]
[340078495,1728474644529,-878.23,0.00038904,30]
[340078496,1728474644538,-333.2,0.00038904,30]
[340078497,1728474644547,-500.0,0.00038904,30]
[340078498,1728474644556,-649.1,0.00038904,30]
[340078499,1728474644565,-500.0,0.00038904,30]
[340078500,1728474644574,-311.59468833,0.00038904,30]
[340078501,1728474644586,-188.40531167,0.00038904,30]
[340078502,1728474644596,-500.0,0.00038904,30]
[340078503,1728474644605,-183.77829422,0.00038904,30]
[340078504,1728474644617,-316.22170578,0.00038904,30]
[340078505,1728474644628,-500.0,0.00038904,30]
[340078506,1728474644640,-4225.37829422,0.00038904,30]
[340078507,1728474644966,-500.0,0.00038356,30]
[340078508,1728474644976,-54.85170578,0.00038904,30]
[340078509,1728474644985,-151.18829422,0.00038904,30]
[340078510,1728474645008,-348.81170578,0.00038904,30]
[340078511,1728474645017,-500.0,0.00038904,30]
[340078512,1728474645027,-554.85,0.00038904,30]
[340078513,1728474645036,-500.0,0.00038904,30]
[340078514,1728474645045,-1591.91,0.00038904,30]
[340078515,1728474645055,-500.0,0.00038904,30]
[340078516,1728474645064,-548.38,0.00038904,30]
[340078517,1728474645073,-500.0,0.00038904,30]
[340078518,1728474645083,-500.0,0.00038904,30]
[340078519,1728474645092,-500.0,0.00038904,30]
[340078520,1728474645102,-1790.13,0.00038904,30]
[340078521,1728474645111,-500.0,0.00038904,30]
[340078522,1728474645121,-681.86,0.00038904,30]
[340078523,1728474645130,-500.0,0.00038904,30]
[340078524,1728474645139,-843.32,0.00038904,30]
[340078525,1728474645149,-500.0,0.00038904,30]
[340078526,1728474645158,-500.0,0.00038904,30]
[340078527,1728474645167,-500.0,0.00038904,30]
[340078528,1728474645177,-500.0,0.00038904,30]
[340078529,1728474645186,-604.97,0.00038904,30]
[340078530,1728474645195,-500.0,0.00038904,30]
[340078531,1728474645205,-500.0,0.00038904,30]
[340078532,1728474645214,-500.0,0.00038904,30]
[340078533,1728474645224,-326.4050328,0.00038904,30]
[340078534,1728474645233,-1647.37,0.00038904,30]
[340078535,1728474645242,-677.99,0.00038904,30]
[340078536,1728474645251,-500.0,0.00038904,30]
[340078537,1728474645262,-500.0,0.00038904,30]
[340078538,1728474645272,-500.0,0.00038904,30]
[340078539,1728474645282,-500.0,0.00038904,30]
[340078540,1728474645291,-500.0,0.00038904,30]
[340078541,1728474645300,-500.0,0.00038904,30]
[340078542,1728474645310,-500.0,0.00038904,30]
[340078543,1728474645320,-500.0,0.00038904,30]
[340078544,1728474645329,-500.0,0.00038904,30]
[340078545,1728474645339,-1538.29,0.00038904,30]
[340078546,1728474645348,-500.0,0.00038904,30]
[340078547,1728474645357,-500.0,0.00038904,30]
[340078548,1728474645367,-500.0,0.00038904,30]
[340078549,1728474645376,-500.0,0.00038904,30]
[340078550,1728474645385,-2791.23,0.00038904,30]
[340078551,1728474645395,-500.0,0.00038904,30]
[340078552,1728474645405,-514.19,0.00038904,30]
[340078553,1728474645414,-500.0,0.00038904,30]
[340078554,1728474645423,-1386.33,0.00038904,30]
[340078555,1728474645434,-500.0,0.00038904,30]
[340078556,1728474645443,-500.0,0.00038904,30]
[340078557,1728474645452,-700.1,0.00038904,30]
[340078558,1728474645462,-1315.33,0.00038904,30]
[340078559,1728474645472,-500.0,0.00038904,30]
[340078560,1728474645481,-500.0,0.00038904,30]
[340078561,1728474645490,-500.0,0.00038904,30]
[340078562,1728474645500,-587.62,0.00038904,30]
[340078563,1728474645509,-500.0,0.00038904,30]
[340078564,1728474645519,-500.0,0.00038904,30]
[340078565,1728474645528,-500.0,0.00038904,30]
[340078566,1728474645538,-500.0,0.00038904,30]
[340078567,1728474645547,-500.0,0.00038904,30]
[340078568,1728474645556,-500.0,0.00038904,30]
[340078569,1728474645565,-648.89,0.00038904,30]
[340078570,1728474645575,-500.0,0.00038904,30]
[340078571,1728474645585,-626.33080192,0.00038904,30]
[340078572,1728474645594,-500.0,0.00038904,30]
[340078573,1728474645603,-500.0,0.00038904,30]
[340078574,1728474645613,-500.0,0.00038904,30]
[340078575,1728474645622,-500.0,0.00038904,30]
[340078576,1728474645632,-500.0,0.00038904,30]
[340078577,1728474645641,-500.0,0.00038904,30]
[340078578,1728474645651,-2775.18,0.00038904,30]
[340078579,1728474645661,-314.61586201,0.00038904,30]
[340078580,1728474645670,-500.0,0.00038904,2]
[340078581,1728474645680,-555.53,0.00038904,30]
[340078582,1728474645689,-500.0,0.00038904,30]
[340078583,1728474645698,-627.06,0.00038904,30]
[340078584,1728474645708,-1709.31,0.00038904,30]
[340078585,1728474645717,-500.0,0.00038904,30]
[340078586,1728474645726,-500.0,0.00038904,30]
[340078587,1728474645735,-500.0,0.00038904,30]
[340078588,1728474645744,-748.87,0.00038904,30]
[340078589,1728474645754,-500.0,0.00038904,30]
[340078590,1728474645763,-500.0,0.00038904,30]
[340078591,1728474645773,-500.0,0.00038904,30]
[340078592,1728474645783,-1645.12,0.00038904,30]
[340078593,1728474645793,-500.0,0.00038904,30]
[340078594,1728474645802,-500.0,0.00038904,30]
[340078595,1728474645812,-500.0,0.00038904,30]
[340078596,1728474645821,-500.0,0.00038904,30]
[340078597,1728474645830,-500.0,0.00038904,30]
[340078598,1728474645839,-500.0,0.00038904,30]
[340078599,1728474645848,-500.0,0.00038904,30]
[340078600,1728474645858,-593.51,0.00038904,30]
[340078601,1728474645868,-192.24437495,0.00038904,30]
[340078602,1728474645877,-500.0,0.00038904,30]
[340078603,1728474645886,-500.0,0.00038904,30]
[340078604,1728474645895,-500.0,0.00038904,30]
[340078605,1728474645904,-500.0,0.00038904,7]
[340078606,1728474645913,-500.0,0.00038904,30]
[340078607,1728474645923,-1016.84,0.00038904,30]
[340078608,1728474645932,-500.0,0.00038904,30]
[340078609,1728474645941,-500.0,0.00038904,30]
[340078610,1728474645951,-1821.33,0.00038904,30]
[340078611,1728474645960,-500.0,0.00038904,30]
[340078612,1728474645969,-551.8,0.00038904,30]
[340078613,1728474645979,-500.0,0.00038904,30]
[340078614,1728474645989,-500.0,0.00038904,30]
[340078615,1728474645998,-500.0,0.00038904,30]
[340078616,1728474646008,-990.39,0.00038904,30]
[340078617,1728474646018,-5329.07,0.00038904,30]
[340078618,1728474646028,-500.0,0.00038904,30]
[340078619,1728474646145,-500.0,0.00038904,30]
[340078620,1728474646159,-743.21,0.00038904,30]
[340078621,1728474646168,-500.0,0.00038904,30]
[340078622,1728474646178,-500.0,0.00038904,30]
[340078623,1728474646187,-580.88,0.00038904,30]
[340078624,1728474646197,-236.08626339,0.00038904,30]
[340078625,1728474646206,-500.0,0.00038904,30]
[340078626,1728474646216,-557.49,0.00038904,30]
[340078627,1728474646226,-500.0,0.00038904,30]
[340078628,1728474646237,-500.0,0.00038904,30]
[340078629,1728474646246,-500.0,0.00038904,30]
[340078630,1728474646256,-500.0,0.00038904,30]
[340078631,1728474646270,-500.0,0.00038904,30]
[340078632,1728474646279,-1516.28,0.00038904,30]
[340078633,1728474646288,-500.0,0.00038904,30]
[340078634,1728474646297,-1601.85,0.00038904,30]
[340078635,1728474646307,-240.71134439,0.00038904,30]
[340078636,1728474646329,-259.28865561,0.00038904,30]
[340078637,1728474646339,-60.01900515,0.00038904,30]
[340078638,1728474646350,-3642.57914762,0.00038904,30]
[340078639,1728474646361,-2838.83184723,0.00038904,30]
[340078640,1728474646371,-500.0,0.00038904,30]
[340078641,1728474646380,-500.0,0.00038904,30]
[340078642,1728474646390,-94.53279221,0.00038904,30]
[340078643,1728474646401,-405.46720779,0.00038904,30]
[340078644,1728474646411,-118.58900515,0.00038904,30]
[340078645,1728474646689,-180.850797,0.00038904,30]
[340078646,1728474646701,-212.22019785,0.00038904,30]
[340078647,1728474646710,-500.0,0.00038904,30]
[340078648,1728474646719,-500.0,0.00038904,30]
[340078649,1728474646729,-500.0,0.00038904,30]
[340078650,1728474646738,-1336.10753097,0.00038904,30]
[340078651,1728474646750,-1808.57246903,0.00038904,30]
[340078652,1728474646761,-500.0,0.00038904,30]
[340078653,1728474646770,-500.0,0.00038904,30]
[340078654,1728474646779,-500.0,0.00038904,30]
[340078655,1728474646789,-516.07,0.00038904,30]
[340078656,1728474646800,-500.0,0.00038904,30]
[340078657,1728474646811,-1660.54,0.00038904,30]
[340078658,1728474646821,-500.0,0.00038904,30]
[340078659,1728474646830,-500.0,0.00038904,30]
[340078660,1728474646839,-500.0,0.00038904,30]
[340078661,1728474646849,-500.0,0.00038904,30]
[340078662,1728474646859,-500.0,0.00038904,30]
[340078663,1728474646869,-500.0,0.00038904,30]
[340078664,1728474646878,-511.35,0.00038904,30]
[340078665,1728474646889,-500.0,0.00038904,30]
[340078666,1728474646899,-1623.1,0.00038904,30]
[340078667,1728474646910,-500.0,0.00038904,30]
[340078668,1728474646920,-1133.39,0.00038904,30]
[340078669,1728474646930,-500.0,0.00038904,30]
[340078670,1728474646939,-500.0,0.00038904,30]
[340078671,1728474646948,-500.0,0.00038904,30]
[340078672,1728474646958,-500.0,0.00038904,30]
[340078673,1728474646967,-520.14,0.00038904,30]
[340078674,1728474646977,-500.0,0.00038904,30]
[340078675,1728474646986,-500.0,0.00038904,30]
[340078676,1728474646996,-752.04,0.00038904,30]
[340078677,1728474647005,-500.0,0.00038904,30]
[340078678,1728474647014,-500.0,0.00038904,30]
[340078679,1728474647024,-500.0,0.00038904,30]
[340078680,1728474647033,-500.0,0.00038904,30]
[340078681,1728474647043,-500.0,0.00038904,30]
[340078682,1728474647052,-500.0,0.00038904,30]
[340078683,1728474647061,-500.0,0.00038904,30]
[340078684,1728474647071,-500.0,0.00038904,30]
[340078685,1728474647080,-500.0,0.00038904,30]
[340078686,1728474647090,-500.0,0.00038904,30]
[340078687,1728474647100,-500.0,0.00038904,30]
[340078688,1728474647109,-500.0,0.00038904,30]
[340078689,1728474647119,-1187.39,0.00038904,30]
[340078690,1728474647128,-5419.72312095,0.00038904,30]
[340078691,1728474647140,-425.26754798,0.00038904,30]
[340078692,1728474647156,-1061.10933107,0.00038904,30]
[340078693,1728474647166,-965.23,0.00038904,30]
[340078694,1728474647175,-500.0,0.00038904,30]
[340078695,1728474647184,-500.0,0.00038904,30]
[340078696,1728474647193,-850.98,0.00038904,30]